[Event "January 2 Early 2024"]
[Site "https://www.chess.com"]
[Date "2024.01.02"]
[Round "11"]
[White "Piesik, Piotr"]
[Black "Devaev, Alexander"]
[Result "1-0"]
[Board "50"]
[TimeControl "180+1"]
[WhiteFideId "1136194"]
[BlackFideId "4169395"]
[WhiteElo "2675"]
[BlackElo "2521"]
[WhiteTeam "CZE"]
[BlackTeam "RUS"]
[WhiteClock "0:01:24"]
[BlackClock "0:00:00"]

1. d4 {[%clk 0:03:00]}  Nf6 {[%clk 0:02:56]} 2. c4 {[%clk 0:03:00]}  e6 {[%clk 0:02:57]} 3. Nc3 {[%clk 0:03:01]}  Bb4 {[%clk 0:02:57]} 4. f3 {[%clk 0:03:01]}  d5 {[%clk 0:02:56]} 5. a3 {[%clk 0:03:01]}  Bxc3+ {[%clk 0:02:56]} 6. bxc3 {[%clk 0:03:02]}  c5 {[%clk 0:02:55]} 7. cxd5 {[%clk 0:03:02]}  exd5 {[%clk 0:02:55]} 8. e3 {[%clk 0:03:01]}  b6 {[%clk 0:02:56]} 9. Bd3 {[%clk 0:03:01]}  O-O {[%clk 0:02:56]} 10. Ne2 {[%clk 0:03:01]}  Ba6 {[%clk 0:02:55]} 11. O-O {[%clk 0:03:01]}  Re8 {[%clk 0:02:54]} 12. Ng3 {[%clk 0:03:00]}  Bxd3 {[%clk 0:02:52]} 13. Qxd3 {[%clk 0:02:59]}  Nc6 {[%clk 0:02:49]} 14. Bb2 {[%clk 0:02:59]}  Qd7 {[%clk 0:02:43]} 15. Rae1 {[%clk 0:02:56]}  Rad8 {[%clk 0:02:42]} 16. Re2 {[%clk 0:02:50]}  h5 {[%clk 0:02:22]} 17. Rd1 {[%clk 0:02:49]}  g6 {[%clk 0:01:56]} 18. Nh1 {[%clk 0:02:32]}  c4 {[%clk 0:01:24]} 19. Qc2 {[%clk 0:02:30]}  Qf5 {[%clk 0:01:20]} 20. e4 {[%clk 0:02:15]}  dxe4 {[%clk 0:01:15]} 21. Ng3 {[%clk 0:02:15]}  Qf4 {[%clk 0:01:10]} 22. fxe4 {[%clk 0:02:13]}  h4 {[%clk 0:01:07]} 23. Rf1 {[%clk 0:02:06]}  Qg5 {[%clk 0:00:52]} 24. Bc1 {[%clk 0:02:05]}  Qg4 {[%clk 0:00:29]} 25. Rxf6 {[%clk 0:02:00]}  hxg3 {[%clk 0:00:29]} 26. h3 {[%clk 0:01:55]}  Qd7 {[%clk 0:00:28]} 27. Rf3 {[%clk 0:01:47]}  Ne7 {[%clk 0:00:20]} 28. Rxg3 {[%clk 0:01:44]}  Nf5 {[%clk 0:00:21]} 29. exf5 {[%clk 0:01:42]}  Rxe2 {[%clk 0:00:16]} 30. Qxe2 {[%clk 0:01:43]}  Qxf5 {[%clk 0:00:16]} 31. Rf3 {[%clk 0:01:37]}  Qb1 {[%clk 0:00:16]} 32. Rf1 {[%clk 0:01:38]}  Qb3 {[%clk 0:00:13]} 33. Bg5 {[%clk 0:01:33]}  Rf8 {[%clk 0:00:11]} 34. Qe3 {[%clk 0:01:30]}  Qxa3 {[%clk 0:00:11]} 35. Bh6 {[%clk 0:01:25]}  Rd8 {[%clk 0:00:00]} 36. Qe5 {[%clk 0:01:24]} 1-0

[Event "January 2 Early 2024"]
[Site "https://www.chess.com"]
[Date "2024.01.02"]
[Round "11"]
[White "Postnikov, Daniil"]
[Black "Arslanov, Shamil"]
[Result "1-0"]
[Board "51"]
[TimeControl "180+1"]
[WhiteFideId "4166329"]
[BlackFideId "4192826"]
[WhiteElo "2518"]
[BlackElo "2673"]
[WhiteTeam "RUS"]
[BlackTeam "RUS"]
[WhiteClock "0:00:51"]
[BlackClock "0:00:00"]

1. e4 {[%clk 0:03:00]}  d6 {[%clk 0:02:59]} 2. d4 {[%clk 0:03:00]}  e5 {[%clk 0:02:59]} 3. Nf3 {[%clk 0:02:59]}  Bg4 {[%clk 0:02:59]} 4. dxe5 {[%clk 0:02:55]}  Nc6 {[%clk 0:02:58]} 5. Nc3 {[%clk 0:02:44]}  Qd7 {[%clk 0:02:50]} 6. Be2 {[%clk 0:02:44]}  O-O-O {[%clk 0:02:50]} 7. Bf4 {[%clk 0:02:36]}  Qe8 {[%clk 0:02:44]} 8. exd6 {[%clk 0:02:27]}  Bxd6 {[%clk 0:02:44]} 9. Bxd6 {[%clk 0:02:26]}  Rxd6 {[%clk 0:02:44]} 10. Qc1 {[%clk 0:02:27]}  Nf6 {[%clk 0:02:42]} 11. Qf4 {[%clk 0:02:22]}  Bxf3 {[%clk 0:02:38]} 12. Bxf3 {[%clk 0:02:23]}  Nd4 {[%clk 0:02:34]} 13. O-O-O {[%clk 0:02:14]}  Nd7 {[%clk 0:01:34]} 14. Rhe1 {[%clk 0:02:05]}  Ne5 {[%clk 0:01:31]} 15. Be2 {[%clk 0:02:01]}  f6 {[%clk 0:00:35]} 16. Qe3 {[%clk 0:02:00]}  c5 {[%clk 0:00:34]} 17. f4 {[%clk 0:01:55]}  Nec6 {[%clk 0:00:33]} 18. Bd3 {[%clk 0:01:53]}  Kb8 {[%clk 0:00:33]} 19. g3 {[%clk 0:01:49]}  h5 {[%clk 0:00:28]} 20. Qf2 {[%clk 0:01:49]}  Qd8 {[%clk 0:00:20]} 21. Nd5 {[%clk 0:01:48]}  Re8 {[%clk 0:00:19]} 22. c3 {[%clk 0:01:46]}  Ne6 {[%clk 0:00:18]} 23. Bc2 {[%clk 0:01:46]}  Qa5 {[%clk 0:00:17]} 24. Kb1 {[%clk 0:01:44]}  Red8 {[%clk 0:00:17]} 25. h4 {[%clk 0:01:35]}  a6 {[%clk 0:00:13]} 26. Qe2 {[%clk 0:01:34]}  Nc7 {[%clk 0:00:11]} 27. Nxc7 {[%clk 0:01:34]}  Qxc7 {[%clk 0:00:12]} 28. Qxh5 {[%clk 0:01:28]}  b5 {[%clk 0:00:11]} 29. Qxc5 {[%clk 0:01:23]}  Rd2 {[%clk 0:00:07]} 30. Qe3 {[%clk 0:01:20]}  Rh2 {[%clk 0:00:06]} 31. Rxd8+ {[%clk 0:01:18]}  Nxd8 {[%clk 0:00:06]} 32. Rd1 {[%clk 0:01:17]}  Ne6 {[%clk 0:00:05]} 33. a3 {[%clk 0:01:17]}  Nc5 {[%clk 0:00:06]} 34. Qd4 {[%clk 0:01:12]}  Rg2 {[%clk 0:00:02]} 35. Qe3 {[%clk 0:00:51]}  Ne6 {[%clk 0:00:00]} 36. Rd2 {[%clk 0:00:51]} 1-0

[Event "January 2 Early 2024"]
[Site "https://www.chess.com"]
[Date "2024.01.02"]
[Round "11"]
[White "Koshulyan, Egor A."]
[Black "Tiarks, Jann-Christian"]
[Result "1-0"]
[Board "53"]
[TimeControl "180+1"]
[WhiteFideId "24237000"]
[BlackFideId "12951595"]
[WhiteElo "2670"]
[BlackElo "2484"]
[WhiteTeam "RUS"]
[BlackTeam "GER"]
[WhiteClock "0:00:49"]
[BlackClock "0:01:11"]

1. e4 {[%clk 0:02:44]}  e6 {[%clk 0:02:59]} 2. d4 {[%clk 0:02:43]}  d5 {[%clk 0:02:59]} 3. e5 {[%clk 0:02:33]}  c5 {[%clk 0:02:58]} 4. c3 {[%clk 0:02:23]}  Nc6 {[%clk 0:02:58]} 5. Nf3 {[%clk 0:02:24]}  Bd7 {[%clk 0:02:56]} 6. Na3 {[%clk 0:02:24]}  Qb6 {[%clk 0:02:56]} 7. Nc2 {[%clk 0:02:24]}  Nh6 {[%clk 0:02:54]} 8. Bd3 {[%clk 0:02:24]}  c4 {[%clk 0:02:49]} 9. Be2 {[%clk 0:02:24]}  Nf5 {[%clk 0:02:49]} 10. O-O {[%clk 0:02:25]}  Be7 {[%clk 0:02:49]} 11. Rb1 {[%clk 0:02:25]}  O-O {[%clk 0:02:45]} 12. b3 {[%clk 0:02:26]}  cxb3 {[%clk 0:02:45]} 13. axb3 {[%clk 0:02:27]}  Rac8 {[%clk 0:02:42]} 14. Bf4 {[%clk 0:02:20]}  f6 {[%clk 0:02:41]} 15. c4 {[%clk 0:02:19]}  fxe5 {[%clk 0:02:36]} 16. Nxe5 {[%clk 0:02:18]}  Nxe5 {[%clk 0:02:34]} 17. Bxe5 {[%clk 0:02:19]}  Bf6 {[%clk 0:02:31]} 18. cxd5 {[%clk 0:02:13]}  exd5 {[%clk 0:02:30]} 19. Bf3 {[%clk 0:02:13]}  Bxe5 {[%clk 0:02:26]} 20. Bxd5+ {[%clk 0:02:12]}  Be6 {[%clk 0:02:26]} 21. dxe5 {[%clk 0:02:08]}  Rfd8 {[%clk 0:02:23]} 22. Bxe6+ {[%clk 0:02:07]}  Qxe6 {[%clk 0:02:23]} 23. Qe2 {[%clk 0:02:08]}  Nh4 {[%clk 0:02:18]} 24. f4 {[%clk 0:01:57]}  Qg6 {[%clk 0:02:12]} 25. Ne3 {[%clk 0:01:56]}  Rc3 {[%clk 0:02:08]} 26. Rbd1 {[%clk 0:01:34]}  Rdc8 {[%clk 0:02:05]} 27. Nd5 {[%clk 0:01:28]}  Kf8 {[%clk 0:01:49]} 28. Nxc3 {[%clk 0:01:14]}  Rxc3 {[%clk 0:01:49]} 29. f5 {[%clk 0:01:00]}  Qc6 {[%clk 0:01:37]} 30. Rd2 {[%clk 0:00:53]}  Rxb3 {[%clk 0:01:29]} 31. f6 {[%clk 0:00:53]}  g5 {[%clk 0:01:26]} 32. e6 {[%clk 0:00:52]}  Qc5+ {[%clk 0:01:11]} 33. Kh1 {[%clk 0:00:49]} 1-0

[Event "January 2 Early 2024"]
[Site "https://www.chess.com"]
[Date "2024.01.02"]
[Round "11"]
[White "Astafurov, Arseniy"]
[Black "Vlassov, Nikolai"]
[Result "0-1"]
[Board "55"]
[TimeControl "180+1"]
[WhiteFideId "24175218"]
[BlackFideId "4103360"]
[WhiteElo "2448"]
[BlackElo "2667"]
[WhiteTeam "RUS"]
[BlackTeam "FID"]
[WhiteClock "0:00:00"]
[BlackClock "0:00:19"]

1. c4 {[%clk 0:02:58]}  e5 {[%clk 0:02:59]} 2. Nc3 {[%clk 0:02:59]}  Nf6 {[%clk 0:02:58]} 3. Nf3 {[%clk 0:02:59]}  e4 {[%clk 0:02:59]} 4. Ng5 {[%clk 0:02:59]}  c6 {[%clk 0:02:59]} 5. Ngxe4 {[%clk 0:02:58]}  Nxe4 {[%clk 0:02:59]} 6. Nxe4 {[%clk 0:02:59]}  d5 {[%clk 0:03:00]} 7. cxd5 {[%clk 0:02:59]}  cxd5 {[%clk 0:03:00]} 8. Nc3 {[%clk 0:02:45]}  d4 {[%clk 0:03:00]} 9. Ne4 {[%clk 0:02:45]}  f5 {[%clk 0:02:59]} 10. Ng3 {[%clk 0:02:43]}  h5 {[%clk 0:02:59]} 11. Qc2 {[%clk 0:02:33]}  h4 {[%clk 0:02:38]} 12. Nxf5 {[%clk 0:02:33]}  d3 {[%clk 0:02:39]} 13. Qa4+ {[%clk 0:02:27]}  Nc6 {[%clk 0:02:31]} 14. Qe4+ {[%clk 0:02:08]}  Kf7 {[%clk 0:02:30]} 15. e3 {[%clk 0:01:48]}  Nb4 {[%clk 0:02:23]} 16. Nd4 {[%clk 0:01:49]}  Bc5 {[%clk 0:02:15]} 17. a3 {[%clk 0:01:46]}  Re8 {[%clk 0:02:00]} 18. Qf3+ {[%clk 0:01:22]}  Kg8 {[%clk 0:01:57]} 19. axb4 {[%clk 0:01:22]}  Bxd4 {[%clk 0:01:54]} 20. Bxd3 {[%clk 0:01:22]}  Be6 {[%clk 0:01:42]} 21. O-O {[%clk 0:01:19]}  Bf6 {[%clk 0:01:30]} 22. Bg6 {[%clk 0:01:11]}  Re7 {[%clk 0:01:21]} 23. Qh5 {[%clk 0:01:09]}  Qd6 {[%clk 0:01:09]} 24. d3 {[%clk 0:00:31]}  Qxb4 {[%clk 0:01:01]} 25. e4 {[%clk 0:00:24]}  Rc7 {[%clk 0:00:42]} 26. Bf4 {[%clk 0:00:19]}  Rc2 {[%clk 0:00:38]} 27. Qh7+ {[%clk 0:00:18]}  Kf8 {[%clk 0:00:38]} 28. Qh8+ {[%clk 0:00:09]}  Bg8 {[%clk 0:00:38]} 29. Bh7 {[%clk 0:00:08]}  Kf7 {[%clk 0:00:37]} 30. Bxg8+ {[%clk 0:00:07]}  Rxg8 {[%clk 0:00:37]} 31. Qh5+ {[%clk 0:00:08]}  g6 {[%clk 0:00:37]} 32. Qd5+ {[%clk 0:00:08]}  Kg7 {[%clk 0:00:38]} 33. Rxa7 {[%clk 0:00:07]}  Rxb2 {[%clk 0:00:32]} 34. Be5 {[%clk 0:00:06]}  Bxe5 {[%clk 0:00:28]} 35. Qxe5+ {[%clk 0:00:07]}  Kh6 {[%clk 0:00:25]} 36. h3 {[%clk 0:00:05]}  Rf8 {[%clk 0:00:22]} 37. Qc7 {[%clk 0:00:02]}  Rbxf2 {[%clk 0:00:19]} 38. Rxf2 {[%clk 0:00:01]}  Qe1+ {[%clk 0:00:19]} 39. Kh2 {[%clk 0:00:00]}  Qxf2 {[%clk 0:00:19]} 0-1

[Event "January 2 Early 2024"]
[Site "https://www.chess.com"]
[Date "2024.01.02"]
[Round "11"]
[White "Ambartsumova, Karina"]
[Black "Bardyk, Artem"]
[Result "1/2-1/2"]
[Board "57"]
[TimeControl "180+1"]
[WhiteFideId "4166299"]
[BlackFideId "34349979"]
[WhiteElo "2601"]
[BlackElo "2722"]
[WhiteTeam "RUS"]
[BlackTeam "RUS"]
[WhiteClock "0:00:05"]
[BlackClock "0:00:03"]

1. d4 {[%clk 0:03:00]}  d5 {[%clk 0:02:57]} 2. c4 {[%clk 0:03:00]}  e6 {[%clk 0:02:57]} 3. Nc3 {[%clk 0:03:01]}  Nf6 {[%clk 0:02:57]} 4. cxd5 {[%clk 0:03:01]}  Nxd5 {[%clk 0:02:58]} 5. e4 {[%clk 0:02:59]}  Nxc3 {[%clk 0:02:58]} 6. bxc3 {[%clk 0:03:00]}  c5 {[%clk 0:02:58]} 7. Nf3 {[%clk 0:03:00]}  cxd4 {[%clk 0:02:59]} 8. cxd4 {[%clk 0:03:01]}  Bb4+ {[%clk 0:02:59]} 9. Bd2 {[%clk 0:03:01]}  Bxd2+ {[%clk 0:03:00]} 10. Qxd2 {[%clk 0:03:02]}  O-O {[%clk 0:03:00]} 11. Bc4 {[%clk 0:02:58]}  Nd7 {[%clk 0:03:00]} 12. h4 {[%clk 0:02:54]}  b6 {[%clk 0:02:59]} 13. h5 {[%clk 0:02:54]}  h6 {[%clk 0:02:57]} 14. Rh3 {[%clk 0:02:48]}  Bb7 {[%clk 0:02:57]} 15. Bd3 {[%clk 0:02:44]}  e5 {[%clk 0:02:50]} 16. Rg3 {[%clk 0:02:34]}  Qf6 {[%clk 0:02:46]} 17. d5 {[%clk 0:02:27]}  Bxd5 {[%clk 0:02:38]} 18. exd5 {[%clk 0:02:15]}  e4 {[%clk 0:02:39]} 19. Rd1 {[%clk 0:02:11]}  exd3 {[%clk 0:02:17]} 20. Qxd3 {[%clk 0:02:12]}  Rfe8+ {[%clk 0:02:17]} 21. Kf1 {[%clk 0:02:12]}  Ne5 {[%clk 0:02:15]} 22. Qd4 {[%clk 0:02:01]}  Qf5 {[%clk 0:02:02]} 23. Nxe5 {[%clk 0:01:55]}  Qxe5 {[%clk 0:01:51]} 24. d6 {[%clk 0:01:35]}  Rad8 {[%clk 0:01:20]} 25. Qxe5 {[%clk 0:01:27]}  Rxe5 {[%clk 0:01:19]} 26. Rc3 {[%clk 0:01:28]}  Kf8 {[%clk 0:01:07]} 27. Rc7 {[%clk 0:01:22]}  Rxh5 {[%clk 0:01:02]} 28. Kg1 {[%clk 0:01:10]}  Ra5 {[%clk 0:00:51]} 29. Rd2 {[%clk 0:01:07]}  b5 {[%clk 0:00:31]} 30. Rb7 {[%clk 0:01:04]}  a6 {[%clk 0:00:26]} 31. Rc2 {[%clk 0:00:59]}  g6 {[%clk 0:00:10]} 32. Rcc7 {[%clk 0:00:35]}  Rxd6 {[%clk 0:00:10]} 33. Rxf7+ {[%clk 0:00:36]}  Kg8 {[%clk 0:00:06]} 34. Rg7+ {[%clk 0:00:31]}  Kf8 {[%clk 0:00:06]} 35. Rh7 {[%clk 0:00:27]}  Kg8 {[%clk 0:00:06]} 36. Rhc7 {[%clk 0:00:18]}  Rd8 {[%clk 0:00:04]} 37. Rg7+ {[%clk 0:00:18]}  Kf8 {[%clk 0:00:02]} 38. Rh7 {[%clk 0:00:16]}  Kg8 {[%clk 0:00:03]} 39. Rbg7+ {[%clk 0:00:15]}  Kf8 {[%clk 0:00:03]} 40. Rf7+ {[%clk 0:00:07]}  Kg8 {[%clk 0:00:04]} 41. Rfg7+ {[%clk 0:00:06]}  Kf8 {[%clk 0:00:04]} 42. Ra7 {[%clk 0:00:07]}  Kg8 {[%clk 0:00:04]} 43. Rxh6 {[%clk 0:00:05]}  Rxa2 {[%clk 0:00:02]} 44. Rxg6+ {[%clk 0:00:05]}  Kf8 {[%clk 0:00:02]} 45. Rf6+ {[%clk 0:00:05]}  Kg8 {[%clk 0:00:02]} 46. Rg6+ {[%clk 0:00:05]}  Kf8 {[%clk 0:00:02]} 47. Rh6 {[%clk 0:00:05]}  Kg8 {[%clk 0:00:03]} 48. Rg6+ {[%clk 0:00:05]} 1/2-1/2

[Event "January 2 Early 2024"]
[Site "https://www.chess.com"]
[Date "2024.01.02"]
[Round "11"]
[White "Csonka, Balazs"]
[Black "Chitre Arush"]
[Result "0-1"]
[Board "58"]
[TimeControl "180+1"]
[WhiteFideId "742910"]
[BlackFideId "25959026"]
[WhiteElo "2663"]
[BlackElo "2599"]
[WhiteTeam "HUN"]
[BlackTeam "IND"]
[WhiteClock "0:00:00"]
[BlackClock "0:00:08"]

1. d4 {[%clk 0:03:00]}  Nf6 {[%clk 0:02:52]} 2. Nf3 {[%clk 0:03:00]}  e6 {[%clk 0:02:51]} 3. Bf4 {[%clk 0:03:00]}  b6 {[%clk 0:02:50]} 4. e3 {[%clk 0:02:59]}  Bb7 {[%clk 0:02:51]} 5. Nbd2 {[%clk 0:02:59]}  d6 {[%clk 0:02:45]} 6. h3 {[%clk 0:02:58]}  Nbd7 {[%clk 0:02:44]} 7. Bh2 {[%clk 0:02:56]}  g6 {[%clk 0:02:43]} 8. Bd3 {[%clk 0:02:56]}  Bg7 {[%clk 0:02:44]} 9. O-O {[%clk 0:02:56]}  O-O {[%clk 0:02:45]} 10. e4 {[%clk 0:02:56]}  Re8 {[%clk 0:02:35]} 11. Re1 {[%clk 0:02:32]}  e5 {[%clk 0:02:34]} 12. c3 {[%clk 0:02:27]}  Nh5 {[%clk 0:02:27]} 13. Qb3 {[%clk 0:02:20]}  Nf4 {[%clk 0:02:19]} 14. Bxf4 {[%clk 0:02:17]}  exf4 {[%clk 0:02:20]} 15. Rad1 {[%clk 0:02:08]}  c5 {[%clk 0:02:16]} 16. Bc4 {[%clk 0:02:02]}  Qe7 {[%clk 0:02:03]} 17. Bd5 {[%clk 0:01:30]}  Bxd5 {[%clk 0:01:56]} 18. Qxd5 {[%clk 0:01:31]}  h6 {[%clk 0:01:47]} 19. a4 {[%clk 0:01:23]}  Nf6 {[%clk 0:01:45]} 20. Qb3 {[%clk 0:01:22]}  Qc7 {[%clk 0:01:43]} 21. e5 {[%clk 0:01:20]}  dxe5 {[%clk 0:01:44]} 22. dxe5 {[%clk 0:01:16]}  Nd7 {[%clk 0:01:34]} 23. e6 {[%clk 0:01:13]}  fxe6 {[%clk 0:01:30]} 24. Rxe6 {[%clk 0:01:14]}  Rxe6 {[%clk 0:01:29]} 25. Qxe6+ {[%clk 0:01:13]}  Kh7 {[%clk 0:01:30]} 26. Nc4 {[%clk 0:00:42]}  Nf8 {[%clk 0:01:26]} 27. Qd6 {[%clk 0:00:36]}  Qxd6 {[%clk 0:01:21]} 28. Rxd6 {[%clk 0:00:36]}  Re8 {[%clk 0:01:17]} 29. Kf1 {[%clk 0:00:37]}  Re7 {[%clk 0:01:12]} 30. Nfd2 {[%clk 0:00:19]}  Ne6 {[%clk 0:01:09]} 31. Ne4 {[%clk 0:00:14]}  f3 {[%clk 0:01:03]} 32. gxf3 {[%clk 0:00:13]}  Nf4 {[%clk 0:01:03]} 33. h4 {[%clk 0:00:11]}  Rf7 {[%clk 0:00:59]} 34. Ne3 {[%clk 0:00:08]}  Nh5 {[%clk 0:00:54]} 35. Ke2 {[%clk 0:00:05]}  Be5 {[%clk 0:00:54]} 36. Rd8 {[%clk 0:00:04]}  Nf4+ {[%clk 0:00:55]} 37. Kf1 {[%clk 0:00:04]}  Nh5 {[%clk 0:00:53]} 38. Re8 {[%clk 0:00:04]}  Bg7 {[%clk 0:00:51]} 39. Ke2 {[%clk 0:00:04]}  Nf4+ {[%clk 0:00:50]} 40. Kf1 {[%clk 0:00:05]}  Nd3 {[%clk 0:00:51]} 41. Nd1 {[%clk 0:00:05]}  Ne5 {[%clk 0:00:47]} 42. f4 {[%clk 0:00:02]}  Rxf4 {[%clk 0:00:46]} 43. Nd6 {[%clk 0:00:03]}  Rxh4 {[%clk 0:00:40]} 44. Re7 {[%clk 0:00:03]}  Kg8 {[%clk 0:00:39]} 45. Rxa7 {[%clk 0:00:03]}  Rf4 {[%clk 0:00:36]} 46. Ne3 {[%clk 0:00:03]}  Ng4 {[%clk 0:00:18]} 47. Nxg4 {[%clk 0:00:03]}  Rxg4 {[%clk 0:00:19]} 48. Ra8+ {[%clk 0:00:03]}  Bf8 {[%clk 0:00:16]} 49. Nc8 {[%clk 0:00:03]}  h5 {[%clk 0:00:12]} 50. Nxb6 {[%clk 0:00:04]}  Kg7 {[%clk 0:00:10]} 51. a5 {[%clk 0:00:03]}  h4 {[%clk 0:00:10]} 52. a6 {[%clk 0:00:03]}  h3 {[%clk 0:00:10]} 53. Ra7+ {[%clk 0:00:02]}  Kh6 {[%clk 0:00:09]} 54. Nd5 {[%clk 0:00:02]}  h2 {[%clk 0:00:09]} 55. Nf6 {[%clk 0:00:02]}  h1=Q+ {[%clk 0:00:09]} 56. Ke2 {[%clk 0:00:02]}  Re4+ {[%clk 0:00:09]} 57. Nxe4 {[%clk 0:00:02]}  Qxe4+ {[%clk 0:00:10]} 58. Kd2 {[%clk 0:00:03]}  Bd6 {[%clk 0:00:10]} 59. Rd7 {[%clk 0:00:02]}  Bf4+ {[%clk 0:00:11]} 60. Kd1 {[%clk 0:00:02]}  Qf3+ {[%clk 0:00:11]} 61. Kc2 {[%clk 0:00:02]}  Qe2+ {[%clk 0:00:09]} 62. Kb1 {[%clk 0:00:01]}  Qxa6 {[%clk 0:00:09]} 63. Rd6 {[%clk 0:00:00]}  Qxd6 {[%clk 0:00:08]} 0-1

[Event "January 2 Early 2024"]
[Site "https://www.chess.com"]
[Date "2024.01.02"]
[Round "11"]
[White "AmanteDeMoi"]
[Black "Hansen, Sune Berg"]
[Result "0-1"]
[Board "60"]
[TimeControl "180+1"]
[BlackFideId "1400266"]
[WhiteElo "2580"]
[BlackElo "2656"]
[BlackTeam "DEN"]
[WhiteClock "0:00:03"]
[BlackClock "0:00:15"]

1. Nf3 {[%clk 0:03:00]}  Nf6 {[%clk 0:02:58]} 2. e3 {[%clk 0:03:01]}  g6 {[%clk 0:02:56]} 3. b3 {[%clk 0:03:02]}  Bg7 {[%clk 0:02:57]} 4. Bb2 {[%clk 0:03:03]}  c5 {[%clk 0:02:55]} 5. Be2 {[%clk 0:03:03]}  O-O {[%clk 0:02:54]} 6. O-O {[%clk 0:03:04]}  b6 {[%clk 0:02:54]} 7. c4 {[%clk 0:03:04]}  Bb7 {[%clk 0:02:54]} 8. d4 {[%clk 0:03:04]}  cxd4 {[%clk 0:02:53]} 9. Nxd4 {[%clk 0:03:05]}  a6 {[%clk 0:02:50]} 10. Nc3 {[%clk 0:03:05]}  d6 {[%clk 0:02:42]} 11. Bf3 {[%clk 0:03:05]}  Ra7 {[%clk 0:02:42]} 12. Rc1 {[%clk 0:03:00]}  Qc8 {[%clk 0:02:39]} 13. Nd5 {[%clk 0:02:56]}  Qd8 {[%clk 0:02:35]} 14. Qd2 {[%clk 0:02:41]}  Nfd7 {[%clk 0:02:26]} 15. Be2 {[%clk 0:02:25]}  e6 {[%clk 0:02:04]} 16. Nc3 {[%clk 0:02:23]}  Nf6 {[%clk 0:02:03]} 17. Rfd1 {[%clk 0:02:23]}  Qe7 {[%clk 0:02:01]} 18. Ba3 {[%clk 0:02:20]}  Rd8 {[%clk 0:02:00]} 19. Bf3 {[%clk 0:02:14]}  Ne8 {[%clk 0:01:57]} 20. Bxb7 {[%clk 0:02:13]}  Rxb7 {[%clk 0:01:58]} 21. Nde2 {[%clk 0:02:10]}  Nc6 {[%clk 0:01:45]} 22. Nf4 {[%clk 0:02:10]}  Qc7 {[%clk 0:01:31]} 23. Ncd5 {[%clk 0:02:08]}  Qb8 {[%clk 0:01:31]} 24. Nc3 {[%clk 0:02:03]}  Rc7 {[%clk 0:01:11]} 25. Bb2 {[%clk 0:02:02]}  b5 {[%clk 0:01:10]} 26. cxb5 {[%clk 0:02:02]}  axb5 {[%clk 0:01:10]} 27. Ne4 {[%clk 0:02:03]}  Ne5 {[%clk 0:00:56]} 28. Rxc7 {[%clk 0:02:00]}  Qxc7 {[%clk 0:00:57]} 29. Nd3 {[%clk 0:01:54]}  Nxd3 {[%clk 0:00:54]} 30. Bxg7 {[%clk 0:01:54]}  Nxf2 {[%clk 0:00:38]} 31. Qxf2 {[%clk 0:01:21]}  Kxg7 {[%clk 0:00:37]} 32. Qb2+ {[%clk 0:01:22]}  e5 {[%clk 0:00:36]} 33. Nc3 {[%clk 0:01:16]}  Nf6 {[%clk 0:00:36]} 34. Nxb5 {[%clk 0:01:14]}  Qc5 {[%clk 0:00:36]} 35. Qe2 {[%clk 0:01:14]}  Nd5 {[%clk 0:00:32]} 36. Kf2 {[%clk 0:00:43]}  Nxe3 {[%clk 0:00:31]} 37. Qxe3 {[%clk 0:00:43]}  Qxb5 {[%clk 0:00:31]} 38. a4 {[%clk 0:00:42]}  Qb4 {[%clk 0:00:29]} 39. Rd5 {[%clk 0:00:42]}  Rc8 {[%clk 0:00:26]} 40. Rb5 {[%clk 0:00:27]}  Rc2+ {[%clk 0:00:25]} 41. Kg3 {[%clk 0:00:22]}  Qa3 {[%clk 0:00:20]} 42. Rd5 {[%clk 0:00:15]}  Qb2 {[%clk 0:00:19]} 43. Qf3 {[%clk 0:00:09]}  Re2 {[%clk 0:00:16]} 44. Rxd6 {[%clk 0:00:01]}  e4 {[%clk 0:00:17]} 45. Qf4 {[%clk 0:00:01]}  Rxg2+ {[%clk 0:00:16]} 46. Kh3 {[%clk 0:00:02]}  Rf2 {[%clk 0:00:15]} 47. Qxe4 {[%clk 0:00:02]}  Rxh2+ {[%clk 0:00:15]} 48. Kg3 {[%clk 0:00:02]}  Qf2+ {[%clk 0:00:15]} 49. Kg4 {[%clk 0:00:03]}  Rh4+ {[%clk 0:00:15]} 50. Kg5 {[%clk 0:00:03]}  h6# {[%clk 0:00:15]} 0-1